bitfinex/quotes_ETHUSD_20240820
["timestamp","ask_amount","ask_price","bid_price","bid_amount"]
[1724159927359,3.79003,2638.5,2638.2,2.72107]
[1724159927559,3.78963,2638.8,2637.9,2.3727]
[1724159928007,3.79064,2638.1,2637.9,2.3727]
[1724159928161,7.58084,2638.3,2637.9,2.3727]
[1724159928361,3.79039,2638.3,2637.9,2.3727]
[1724159928663,3.79025,2638.4,2638.0,0.23727]
[1724159928891,3.79025,2638.4,2637.9,2.3727]
[1724159929094,3.79033,2638.3,2637.9,2.3727]
[1724159929455,3.79033,2638.3,2638.0,0.55]
[1724159930606,3.79025,2638.4,2638.0,0.55]
[1724159932431,2.34743551,2639.4,2638.0,0.55]
[1724159932432,3.78968,2638.8,2638.4,2.4695]
[1724159932598,3.78968,2638.8,2638.5,19.54]
[1724159932799,3.78981,2638.7,2638.5,19.54]
[1724159933106,2.91524082,2639.3,2638.5,19.54]
[1724159933107,3.78988,2638.6,2638.5,19.54]
[1724159933850,3.78967,2638.8,2638.5,19.54]
[1724159934018,7.57937,2638.8,2638.5,19.54]
[1724159934198,3.78967,2638.8,2638.5,19.54]
[1724159934404,7.57939,2638.8,2638.5,19.54]
[1724159934605,3.78978,2638.7,2638.5,19.54]
[1724159935944,3.78978,2638.7,2638.6,19.54]
[1724159936156,0.59414082,2639.3,2639.0,3.78923]
[1724159936408,3.78835,2639.7,2638.8,2.3127]
[1724159936409,3.7886,2639.5,2639.1,20.09]
[1724159937223,3.7886,2639.5,2639.1,22.099]
[1724159938170,3.78835,2639.7,2639.1,25.88814]
[1724159938315,3.78835,2639.7,2639.2,2.3171]
[1724159938316,3.78852,2639.6,2639.2,2.3171]
[1724159938812,3.7886,2639.5,2639.2,2.3171]
[1724159940040,3.78835,2639.7,2639.2,2.3171]
[1724159940246,3.78846,2639.6,2639.3,0.55]
[1724159940520,3.78861,2639.5,2639.3,0.55]
[1724159940716,3.78861,2639.5,2639.2,5.516548]
[1724159941112,3.78861,2639.5,2639.3,0.55]
[1724159941455,3.78852,2639.6,2639.3,0.55]
[1724159941660,3.78809,2639.9,2639.4,0.07577058]
[1724159941868,0.41246345,2639.8,2639.4,19.54]
[1724159942028,7.57623,2639.9,2639.4,19.54]
[1724159942227,7.57623,2639.9,2639.5,0.07576557]
[1724159942228,3.78809,2639.9,2639.5,0.07576557]
[1724159942445,3.78828,2639.8,2639.4,19.54]
[1724159942630,3.78845,2639.6,2639.4,19.54]
[1724159944056,7.57698,2639.6,2639.4,19.54]
[1724159944360,3.78859,2639.5,2639.4,19.54]
[1724159944922,3.78859,2639.5,2639.0,19.54]
[1724159945122,3.78859,2639.5,2639.1,0.55]
[1724159945375,3.78917,2639.1,2639.0,19.54]
[1724159945536,3.78945,2638.9,2638.7,19.54]
[1724159945732,3.78917,2639.1,2638.7,19.54]
[1724159946061,3.78917,2639.1,2638.7,21.73715]
[1724159946520,7.57843,2639.1,2638.7,21.73715]
[1724159946948,3.78869,2639.5,2638.8,2.32]
[1724159947169,0.41242967,2639.4,2638.9,3.78938]
[1724159947317,3.78869,2639.5,2639.0,4.400218]
[1724159947675,3.78869,2639.5,2639.1,2.4807]
[1724159948258,3.0,2640.1,2639.1,2.4807]
[1724159948259,2.277,2640.2,2639.1,22.0207]
[1724159948473,2.277,2640.2,2639.2,20.09]
[1724159948474,3.78859,2639.6,2639.2,20.09]
[1724159948769,3.78869,2639.5,2639.3,19.54]
[1724159948918,3.78869,2639.5,2639.4,0.55]
[1724159949120,3.78873,2639.4,2639.3,19.54]
[1724159950150,3.78803,2639.9,2639.3,19.54]
[1724159950353,3.78873,2639.4,2639.3,19.54]
[1724159950719,7.57746,2639.4,2639.3,19.54]
[1724159950920,11.77864754,2639.4,2639.3,19.54]
[1724159951466,7.98991754,2639.4,2639.3,19.54]
[1724159952375,7.57746,2639.4,2639.3,19.54]
[1724159952582,7.98990119,2639.4,2639.3,19.54]
[1724159952936,11.77863119,2639.4,2639.3,19.54]
[1724159953340,12.49098811,2639.4,2639.3,19.54]
[1724159954442,11.36619,2639.4,2639.3,19.54]
[1724159954639,12.49097769,2639.4,2639.3,19.54]
[1724159956182,11.77861215,2639.4,2639.3,19.54]
[1724159956402,7.57746,2639.4,2639.3,19.54]
[1724159956685,7.98991542,2639.4,2639.3,19.54]
[1724159958367,14.14644542,2639.4,2639.3,19.54]
[1724159958555,11.07018538,2639.4,2639.3,19.54]
[1724159958768,7.98991542,2639.4,2639.3,19.54]
[1724159959385,11.77864542,2639.4,2639.3,19.54]
[1724159959807,12.49108802,2639.4,2639.3,19.54]
[1724159960298,12.49114168,2639.4,2639.3,19.54]
[1724159961516,7.5789,2638.9,2638.8,19.54]
[1724159961801,3.78974,2638.7,2638.6,19.54]
[1724159962190,3.78995,2638.6,2638.4,21.9882]
[1724159962704,3.78995,2638.6,2638.0,2.2957]
[1724159963262,3.79019,2638.4,2638.0,2.2957]
[1724159963859,3.79004,2638.5,2638.1,0.55]
[1724159964181,3.79004,2638.5,2638.2,0.663644]
[1724159964560,3.79004,2638.5,2638.1,0.55]
[1724159965095,7.57972,2638.7,2638.1,0.55]
[1724159965272,3.78954,2638.9,2638.2,6.20547]
[1724159965473,3.78954,2638.9,2638.3,0.55]
[1724159965675,3.78968,2638.8,2638.4,0.675547]
[1724159966096,3.78974,2638.7,2638.4,0.675547]
[1724159967206,3.78954,2638.9,2638.4,0.675547]
[1724159967517,3.78954,2638.9,2638.5,2.4954]
[1724159967518,7.5791,2638.9,2638.5,2.4954]
[1724159967715,3.78954,2638.9,2638.5,3.2465187]
[1724159967919,3.78981,2638.7,2638.5,2.4954]
[1724159968083,7.57964,2638.7,2638.3,2.8009]
[1724159968284,3.78981,2638.7,2638.3,2.8009]
[1724159970391,3.78956,2638.9,2638.3,6.59121]
[1724159970618,3.78956,2638.9,2638.4,23.989221]
[1724159970803,3.78956,2638.9,2638.5,0.55]
[1724159971123,7.57909,2638.9,2638.5,0.55]
[1724159971329,3.78961,2638.8,2638.5,0.55]
[1724159971622,3.78984,2638.7,2638.5,0.55]
[1724159971825,3.78984,2638.7,2638.4,20.199121]
[1724159972182,3.78961,2638.8,2638.5,2.2450021]
[1724159972380,3.78976,2638.7,2638.5,2.2450021]
[1724159972679,2.3889,2639.1,2638.3,21.7909]
[1724159972908,3.79011,2638.5,2638.3,2.2509]
[1724159973110,3.79017,2638.4,2638.1,19.54]
[1724159973321,3.79017,2638.4,2638.1,21.9068]
[1724159973510,3.79017,2638.4,2638.1,2.3668]
[1724159973711,3.79017,2638.4,2638.1,2.60348]
[1724159975192,3.79011,2638.5,2638.1,2.60348]
[1724159975393,7.58001,2638.6,2638.1,2.3668]
[1724159975592,3.7901,2638.5,2638.1,2.3668]
[1724159975994,3.79019,2638.4,2638.1,2.3668]
[1724159977799,2.35260594,2639.3,2638.6,2.3684]
[1724159978072,2.35260594,2639.3,2638.4,3.79008]
[1724159978073,3.7874,2640.4,2639.8,2.3684]
[1724159978270,0.4126403,2640.3,2639.9,0.23684]
[1724159978571,0.4126403,2640.2,2639.9,0.55]
[1724159978886,3.78783,2640.1,2639.3,2.3936]
[1724159979186,4.166663,2640.0,2639.4,0.55]
[1724159979327,3.78803,2639.9,2639.4,0.55]
[1724159979526,3.78823,2639.8,2639.4,0.55]
[1724159979727,3.78832,2639.7,2639.4,0.55]
[1724159979927,6.13966594,2640.6,2639.6,3.872]
[1724159979928,2.35260594,2640.5,2639.6,3.872]
[1724159980228,3.78755,2640.3,2639.8,2.3936]
[1724159980425,7.5745,2640.5,2639.9,0.55]
[1724159980835,3.78731,2640.4,2639.9,0.55]
[1724159981461,3.78746,2640.3,2639.9,0.55]
[1724159982131,3.78764,2640.2,2639.8,2.3936]
[1724159982630,3.78764,2640.2,2639.5,2.4263]
[1724159982830,3.78764,2640.2,2639.6,0.55]
[1724159983131,3.78775,2640.1,2639.6,0.55]
[1724159983581,3.78775,2640.1,2639.7,19.54]
[1724159983785,3.78812,2639.9,2639.7,19.54]
[1724159983984,3.78812,2639.9,2639.3,19.54]
[1724159984183,3.78812,2639.9,2639.4,2.57552]
[1724159985286,3.78828,2639.8,2639.2,21.9663]
[1724159985985,3.78802,2639.9,2639.2,21.9663]
[1724159985986,3.78833,2639.7,2639.2,21.9663]
[1724159986339,7.57676,2639.7,2639.2,21.9663]
[1724159986745,3.78833,2639.7,2639.2,21.9663]
[1724159986940,3.78833,2639.7,2639.3,0.55]
[1724159987263,3.78882,2639.4,2639.2,19.54]
[1724159987483,3.78888,2639.3,2639.2,19.54]
[1724159987791,3.78888,2639.3,2639.0,19.54]
[1724159989077,3.78862,2639.5,2639.0,19.54]
[1724159989252,3.78862,2639.5,2639.1,1.954]
[1724159989599,6.06733,2640.0,2639.1,1.954]
[1724159989896,3.7886,2639.5,2639.1,19.54]
[1724159990195,3.78853,2639.6,2639.1,19.54]
[1724159991809,3.78848,2639.6,2639.1,19.54]
[1724159992097,3.78867,2639.5,2639.1,19.54]
[1724159992296,3.78875,2639.4,2639.1,19.54]
[1724159992511,3.78875,2639.4,2638.9,19.54]
[1724159992796,3.78895,2639.3,2638.9,19.54]
[1724159993601,3.78912,2639.2,2638.9,19.54]
[1724159993811,3.78912,2639.2,2639.0,19.54]
[1724159994094,3.78922,2639.1,2639.0,19.54]
[1724159994651,7.57827,2639.2,2639.0,19.54]
[1724159994898,7.57823,2639.2,2639.0,19.54]
[1724159995054,3.78917,2639.1,2639.0,19.54]
[1724159995710,3.78938,2639.0,2638.6,19.54]
[1724159995852,3.78938,2639.0,2638.6,20.875045]
[1724159996821,2.33,2639.4,2638.6,20.875045]
[1724159996822,7.57768,2639.4,2638.6,20.875045]
[1724159996978,7.57768,2639.4,2638.7,7.0351935]
[1724159997424,3.78889,2639.3,2638.7,7.0351935]
[1724159997615,3.78883,2639.4,2638.7,7.0351935]
[1724159997813,3.78883,2639.4,2638.8,6.08953]
[1724159998016,7.5777,2639.4,2638.9,0.55]
[1724159998184,3.78883,2639.4,2638.9,1.53850735]
[1724159998587,3.78859,2639.5,2638.9,1.53850735]
[1724159999019,3.78859,2639.5,2638.9,5.32791735]
[1724159999231,3.78855,2639.6,2638.9,5.32791735]
[1724159999232,3.78875,2639.4,2639.0,0.76279174]
[1724160000534,3.7886,2639.5,2639.0,0.76279174]
[1724160000830,3.78832,2639.7,2639.2,2.4612]
[1724160000991,3.78832,2639.7,2639.3,0.55]
[1724160001806,3.78845,2639.6,2639.3,0.55]
[1724160002653,3.78888,2639.3,2639.1,19.54]
[1724160003502,3.78902,2639.2,2639.1,19.54]
[1724160004356,3.78888,2639.3,2638.5,19.54]
[1724160004357,3.78942,2639.0,2638.5,19.54]
[1724160004513,3.78942,2639.0,2638.6,19.54]
[1724160004718,3.78968,2638.8,2638.6,19.54]
[1724160005127,7.57937,2638.8,2638.6,19.54]
[1724160005342,3.78968,2638.8,2638.6,19.54]
[1724160005814,3.78974,2638.7,2638.6,19.54]
[1724160006016,7.57948,2638.7,2638.6,19.54]
[1724160006756,3.78974,2638.7,2638.6,19.54]
[1724160008179,7.57948,2638.7,2638.6,19.54]
[1724160009246,2.65991,2639.3,2638.1,2.4546]
[1724160009247,2.4264,2638.8,2638.1,2.4546]
[1724160010558,3.78981,2638.7,2638.1,2.4546]
[1724160010764,2.93795426,2639.0,2638.2,4.34034]
[1724160010765,4.38346426,2639.0,2638.2,4.34034]
[1724160010959,3.78913,2639.2,2638.5,3.78996]
[1724160011263,3.78937,2639.0,2638.6,0.55]
[1724160011466,3.78937,2639.0,2638.3,6.476164]
[1724160011467,7.57795,2639.3,2638.5,2.4416]
[1724160011770,3.78903,2639.2,2638.8,2.4416]
[1724160012076,3.78918,2639.1,2638.6,3.614776]
[1724160012219,3.78974,2638.7,2638.3,2.875634]
[1724160012418,3.78989,2638.6,2638.3,2.875634]
[1724160013635,3.78974,2638.7,2638.3,2.875634]
[1724160014118,7.57958,2638.7,2638.3,2.875634]
[1724160014648,3.78974,2638.7,2638.3,2.875634]
[1724160014958,3.78974,2638.7,2638.3,2.711134]
[1724160016669,3.78931,2639.0,2638.8,19.54]
[1724160016860,3.78945,2638.9,2638.8,19.54]
[1724160017673,3.78931,2639.0,2638.8,19.54]
[1724160018173,3.78945,2638.9,2638.8,19.54]
[1724160020381,3.78939,2639.0,2638.8,19.54]
[1724160020536,3.78919,2639.1,2638.8,23.8634]
[1724160020737,3.78865,2639.5,2638.8,23.8634]
[1724160020957,3.78891,2639.3,2638.8,23.8634]
[1724160021159,3.78891,2639.3,2638.9,2.765307]
[1724160021949,7.57787,2639.3,2638.9,2.765307]
[1724160022135,7.57787,2639.3,2638.9,22.305307]
[1724160022331,3.78903,2639.2,2638.9,19.54]
[1724160022634,3.78931,2639.0,2638.9,19.54]
[1724160022834,7.57862,2639.0,2638.9,19.54]
[1724160024386,3.78931,2639.0,2638.9,19.54]
[1724160024768,0.59404243,2639.6,2639.4,3.78872]
[1724160024938,3.86401624,2640.3,2639.5,26.12859]
[1724160025139,3.86401624,2640.3,2639.6,19.54]
[1724160025471,7.65147624,2640.3,2639.6,19.54]
[1724160025677,7.65147624,2640.3,2639.6,22.097873]
[1724160025843,3.7876,2640.2,2639.6,22.097873]
[1724160026841,3.78774,2640.1,2639.6,22.097873]
[1724160027041,3.78807,2639.9,2639.6,19.54]
[1724160027451,3.78774,2640.1,2639.6,19.54]
[1724160027684,3.78788,2640.0,2639.6,19.54]
[1724160028188,3.78788,2640.0,2639.5,2.25]
[1724160028535,3.78803,2639.9,2639.5,2.25]
[1724160028785,3.78803,2639.9,2639.4,19.54]
[1724160028956,4.166833,2639.9,2639.4,19.54]
[1724160029584,6.15844,2640.1,2639.4,19.54]
[1724160030255,3.78788,2640.0,2639.4,19.54]
[1724160031799,0.06848145,2639.9,2639.4,19.54]
[1724160032848,3.85653145,2639.9,2639.4,19.54]
[1724160033043,0.06848145,2639.9,2639.4,19.54]
[1724160033247,2.3707,2640.1,2639.4,19.54]
[1724160033693,3.85608012,2640.0,2639.4,19.54]
[1724160034216,3.85608012,2640.0,2639.5,19.54]
[1724160034794,0.06819012,2640.0,2639.6,2.4363]
[1724160035014,0.06819012,2640.0,2639.6,6.77465]
[1724160035314,3.78761,2640.2,2639.6,9.784985]
[1724160035686,0.06820333,2640.1,2639.6,9.784985]
[1724160035994,0.06820333,2640.1,2639.6,5.996635]
[1724160037520,3.85601333,2640.1,2639.6,5.996635]
[1724160037669,3.85601333,2640.1,2639.6,2.9863]
[1724160038268,3.85601333,2640.1,2639.6,2.4363]
[1724160038519,3.78788,2640.0,2639.6,2.4363]
[1724160038719,0.06800788,2639.9,2639.6,2.4363]
[1724160039677,3.78762,2640.2,2639.7,0.55]
[1724160040017,0.06820333,2640.1,2639.7,20.09]
[1724160040530,3.85597333,2640.1,2639.7,20.09]
[1724160040817,3.78803,2639.9,2639.7,19.54]
[1724160041137,0.06791015,2639.8,2639.7,19.54]
[1724160041930,3.85607015,2639.8,2639.7,19.54]
[1724160044301,3.7883,2639.7,2639.5,19.54]
[1724160044485,3.78896,2639.3,2639.0,19.54]
[1724160044689,6.1822,2639.8,2639.0,19.54]
[1724160044690,3.85644414,2639.2,2639.0,19.54]
[1724160045012,3.78948,2638.9,2638.7,19.54]
[1724160045176,3.78948,2638.9,2638.5,2.4192]
[1724160045177,7.57901,2638.9,2638.6,19.54]
[1724160045401,0.06714629,2638.8,2638.6,19.54]
[1724160045734,3.78948,2638.9,2638.6,19.54]
[1724160045940,7.57858,2639.1,2638.6,19.54]
[1724160046239,3.7887,2639.5,2638.7,6.27863]
[1724160046406,0.06723897,2639.0,2638.8,19.54]
[1724160046616,3.7889,2639.3,2638.8,19.54]
[1724160047011,0.06730664,2639.2,2638.8,19.54]
[1724160047213,0.06730664,2639.2,2638.8,23.32958]
[1724160047422,7.5777,2639.4,2638.9,4.846048]
[1724160047909,0.06740442,2639.3,2638.9,4.846048]
[1724160048309,0.06740442,2639.3,2639.1,3.7891]
[1724160048513,3.78817,2639.8,2639.2,2.4014]
[1724160048708,0.06720565,2639.7,2639.3,1.169047]
[1724160048908,3.78817,2639.8,2639.4,19.54]
[1724160049112,3.7881,2639.9,2639.4,19.54]
[1724160049345,0.06742733,2639.8,2639.5,2.3911]
[1724160049525,0.06742733,2639.8,2639.6,2.19311]
[1724160049727,3.78791,2640.0,2639.6,2.19311]
[1724160049931,0.06763176,2639.9,2639.6,2.19311]
[1724160050308,0.06763176,2639.9,2639.6,5.98154]
[1724160050505,3.78773,2640.1,2639.7,1.766123]
[1724160050707,0.06800681,2640.0,2639.7,1.766123]
[1724160051130,3.78766,2640.2,2639.7,1.766123]
[1724160051341,3.85584453,2640.1,2639.7,0.55]
[1724160052445,0.06810453,2640.1,2639.7,0.55]
[1724160052744,3.78761,2640.2,2639.8,2.4398]
[1724160053007,3.85531233,2640.1,2639.8,2.4398]
[1724160053308,3.85531233,2640.1,2639.8,2.958091]
[1724160054516,0.06757233,2640.1,2639.8,22.498091]
[1724160054803,0.59390313,2640.6,2640.0,6.10814]
[1724160054972,3.78695,2640.7,2640.1,22.104814]
[1724160055176,0.06671474,2640.5,2640.1,22.104814]
[1724160055413,3.78717,2640.5,2640.1,22.104814]
[1724160055712,0.06661698,2640.4,2640.1,22.104814]
[1724160056919,7.57505,2640.3,2640.1,19.54]
[1724160057121,3.7875,2640.3,2640.1,19.54]
[1724160057277,0.06691921,2640.2,2640.1,19.54]
[1724160057480,3.7875,2640.3,2640.1,19.54]
[1724160057718,0.06674852,2640.2,2640.1,19.54]
[1724160057922,3.78724,2640.5,2640.1,21.72604]
[1724160058120,0.06694405,2640.4,2640.1,21.72604]
[1724160059897,3.7871,2640.6,2640.1,21.72604]
[1724160060093,3.85439536,2640.5,2640.1,21.72604]
[1724160061343,0.06719536,2640.5,2640.2,19.54]
[1724160061490,3.78665,2640.9,2640.3,2.551374]
[1724160061688,3.78691,2640.7,2640.3,2.551374]
[1724160061894,3.78691,2640.7,2640.4,2.2511]
[1724160062124,0.06712088,2640.6,2640.4,2.2511]
[1724160062510,3.78667,2640.9,2640.4,2.2511]
[1724160062737,3.78667,2640.9,2640.4,5.1190874]
[1724160062906,0.06886127,2640.8,2640.4,5.1190874]
[1724160063114,0.06886127,2640.8,2639.8,0.518291]
[1724160063115,3.78739,2640.4,2639.8,0.518291]
[1724160063432,0.06729689,2640.3,2639.7,6.18948]
[1724160063730,3.7873,2640.4,2639.7,6.18948]
[1724160063935,3.7871,2640.6,2639.9,6.25594]
[1724160064146,3.7871,2640.6,2640.0,3.78783]
[1724160064347,0.06856823,2640.5,2640.0,3.78783]
[1724160064505,0.06856823,2640.5,2640.1,0.55]
[1724160064703,0.06856823,2640.5,2640.1,1.230583]
[1724160066457,0.06856823,2640.5,2640.2,2.4385]
[1724160066606,0.06856823,2640.5,2640.3,0.55]
[1724160066803,3.78681,2640.8,2640.3,0.55]
[1724160066998,3.78681,2640.8,2640.4,2.4385]
[1724160067197,7.57367,2640.8,2640.5,0.29885]
[1724160067632,3.78681,2640.8,2640.5,0.29885]
[1724160067873,7.57363,2640.8,2640.5,0.29885]
[1724160068033,3.78681,2640.8,2640.5,0.29885]
[1724160068549,7.57304,2641.0,2640.6,19.61573424]
[1724160068852,2.3879,2640.8,2640.1,0.680583]
[1724160069049,3.78716,2640.5,2639.8,19.54]
[1724160069253,3.78716,2640.5,2639.6,2.472]
[1724160069254,3.78754,2640.3,2639.6,6.26031]
[1724160069405,3.78724,2640.5,2639.7,3.78821]
[1724160069604,3.78724,2640.5,2639.6,3.78831]
[1724160069605,3.78734,2640.4,2639.9,2.3075]
[1724160069806,7.57454,2640.5,2639.9,2.3075]
[1724160070005,3.78724,2640.5,2639.9,2.3075]
[1724160070251,3.78746,2640.3,2639.9,2.3075]
[1724160070406,7.5745,2640.5,2639.9,2.3075]
[1724160070745,3.78734,2640.4,2640.0,0.6853222]
[1724160071232,3.729319,2640.3,2640.0,0.6853222]
[1724160071419,3.729319,2640.3,2639.9,2.3075]
[1724160071634,3.729319,2640.3,2640.0,0.55]
[1724160072165,0.0682392,2640.2,2640.0,0.55]
[1724160072525,3.78724,2640.5,2640.0,0.55]
[1724160072769,0.06843461,2640.4,2640.0,0.55]
[1724160072972,3.78766,2640.2,2640.0,0.55]
[1724160073571,3.78766,2640.2,2639.2,11.059]
[1724160073572,3.78873,2639.5,2638.9,2.2576]
[1724160073780,3.7889,2639.3,2638.9,2.2576]
[1724160074122,0.06623089,2639.2,2638.9,2.2576]
[1724160074469,3.78867,2639.5,2638.9,2.2576]
[1724160074672,3.78867,2639.5,2638.8,3.78947]
[1724160074673,0.06613306,2639.1,2639.0,3.043307]
[1724160074894,3.78878,2639.4,2639.0,3.043307]
[1724160075167,0.06626114,2639.3,2639.0,3.043307]
[1724160077246,3.78867,2639.5,2639.0,3.043307]
[1724160077451,7.57685,2639.7,2639.0,6.832587]
[1724160077655,0.06602707,2639.4,2639.2,2.3828]
[1724160077828,3.7884,2639.7,2639.3,0.55]
[1724160078039,3.78821,2639.8,2639.3,0.55]
[1724160078255,3.78801,2640.0,2639.3,1.29051487]
[1724160078473,3.78802,2639.9,2639.4,2.3828]
[1724160078642,3.78788,2640.0,2639.5,0.55]
[1724160078851,3.78788,2640.0,2639.6,19.54]
[1724160079049,3.78803,2639.9,2639.6,22.166145]
[1724160079247,3.78803,2639.9,2639.6,19.54]
[1724160082888,3.78762,2640.2,2639.6,19.54]
[1724160083126,3.78826,2639.8,2639.6,19.54]
[1724160083325,7.57653,2639.8,2639.6,19.54]
[1724160083524,3.7883,2639.7,2639.6,19.54]
[1724160084239,3.7883,2639.7,2639.6,21.73228]
[1724160084923,3.78804,2639.9,2639.6,21.73228]
[1724160085936,3.78818,2639.8,2639.6,21.73228]
[1724160086246,3.7883,2639.7,2639.6,19.54]
[1724160086613,7.5766,2639.7,2639.6,19.54]
[1724160086815,7.64322248,2639.7,2639.6,19.54]
[1724160088546,3.78917,2639.1,2639.0,19.54]
[1724160088903,3.85559434,2639.1,2639.0,19.54]
[1724160089106,7.64476434,2639.1,2639.0,19.54]
[1724160089328,7.64476434,2639.1,2638.6,2.3689]
[1724160089329,3.78974,2638.7,2638.6,19.54]
[1724160089536,3.85576559,2638.7,2638.6,19.54]
[1724160090219,7.64550559,2638.7,2638.6,19.54]
[1724160090806,3.85576559,2638.7,2638.6,19.54]
[1724160091217,3.79003,2638.5,2638.4,19.54]
[1724160091436,0.06602559,2638.7,2638.3,19.54]
[1724160091437,7.58034,2638.4,2638.3,19.54]
[1724160091843,7.64596266,2638.4,2638.3,19.54]
[1724160092704,3.7906,2638.1,2638.0,19.54]
[1724160092909,2.4438,2638.0,2637.4,26.81]
[1724160093218,2.4438,2638.0,2637.1,12.37]
[1724160093219,7.58264,2637.6,2637.5,19.54]
[1724160093620,7.58322,2637.4,2637.3,19.586902]
[1724160093801,7.58322,2637.4,2637.3,0.046902]
[1724160094319,7.64873689,2637.4,2637.3,0.046902]
[1724160094519,3.85712689,2637.4,2637.3,0.046902]
[1724160094948,3.85712689,2637.4,2637.3,0.596902]
[1724160096851,3.85712689,2637.4,2637.3,3.002102]
[1724160096852,0.06551689,2637.4,2637.3,3.002102]
[1724160097150,3.7911,2637.8,2637.3,3.3023122]
[1724160097318,0.06533536,2637.7,2637.4,0.55]
[1724160097528,3.7911,2637.8,2637.4,0.55]
[1724160097843,0.0656343,2637.7,2637.4,0.55]
[1724160098021,0.0656343,2637.7,2637.4,0.88023122]
[1724160098226,6.7908,2638.0,2637.4,0.88023122]
[1724160098227,7.58165,2638.0,2637.4,0.88023122]
[1724160098438,0.06549369,2637.6,2637.5,19.54]
[1724160098753,0.06549369,2637.6,2637.5,22.23641934]
[1724160098906,3.7908,2638.0,2637.5,22.78641934]
[1724160099106,3.7908,2638.0,2637.6,2.2779]
[1724160099107,0.06575954,2637.9,2637.6,2.2779]
[1724160099346,0.06575954,2637.9,2637.7,0.55]
[1724160099550,0.06575954,2637.9,2637.7,3.05643193]
[1724160100254,3.85665954,2637.9,2637.7,3.05643193]
[1724160100449,3.85665954,2637.9,2637.7,0.55]
[1724160100604,0.06575954,2637.9,2637.7,0.55]
[1724160101050,3.79061,2638.1,2637.7,0.55]
[1724160101369,3.79037,2638.3,2637.7,4.34118]
[1724160101553,0.06639611,2638.2,2637.7,4.34118]
[1724160101782,0.06639611,2638.2,2637.8,24.371977]
[1724160101927,3.79011,2638.5,2637.9,0.55]
[1724160102124,0.06434899,2638.4,2638.0,2.2777]
[1724160102321,0.06434899,2638.4,2638.1,20.09]
[1724160102931,0.06434899,2638.4,2638.2,19.61580156]
[1724160103229,3.78942,2639.0,2638.3,2.94562716]
[1724160103412,3.7896,2638.8,2638.4,19.54]
[1724160103616,3.7896,2638.8,2638.5,0.55]
[1724160104217,0.0575267,2638.7,2638.5,0.55]
[1724160104613,3.78988,2638.6,2638.5,0.55]
[1724160104817,3.84709288,2638.6,2638.5,0.55]
[1724160105032,0.05721288,2638.6,2638.5,0.55]
[1724160105416,3.7896,2638.8,2638.5,0.55]
[1724160105610,7.57929,2638.8,2638.5,0.55]
[1724160105849,0.05771294,2638.7,2638.5,0.55]
[1724160106044,0.05771294,2638.7,2638.5,2.559]
[1724160106253,3.7896,2638.8,2638.5,2.559]
[1724160106457,0.05752983,2638.6,2638.5,2.559]
[1724160106629,3.7896,2638.8,2638.5,2.559]
[1724160107045,3.78939,2639.0,2638.5,2.559]
[1724160107046,0.05766707,2638.7,2638.5,2.559]
[1724160107256,0.05766707,2638.7,2638.6,2.2099]
[1724160107464,3.78948,2638.9,2638.6,2.7599]
[1724160107620,3.78948,2638.9,2638.7,0.55]
[1724160107821,0.05759597,2638.8,2638.7,0.55]
[1724160108127,0.05759597,2638.8,2638.6,0.55]
[1724160108775,6.3696,2639.6,2638.6,0.55]
[1724160109061,7.57759,2639.4,2638.7,3.78968]
[1724160109262,3.7889,2639.3,2638.8,2.089956]
[1724160109478,3.84619964,2639.3,2638.8,2.089956]
[1724160110222,0.05729964,2639.3,2638.8,2.089956]
[1724160110467,3.84625964,2639.3,2638.8,2.089956]
[1724160110770,3.78941,2639.0,2638.8,0.55]
[1724160111065,3.78941,2639.0,2638.9,19.54]
[1724160111273,3.78941,2639.0,2638.9,20.09]
[1724160112457,7.57883,2639.0,2638.9,20.09]
[1724160113189,11.36825,2639.0,2638.9,19.54]
[1724160113753,3.78941,2639.0,2638.9,19.54]
[1724160114069,7.57872,2639.0,2638.9,19.54]
[1724160114439,7.57872,2639.0,2638.9,20.09]
[1724160114841,7.57862,2639.0,2638.9,20.09]
[1724160116387,7.57862,2639.0,2638.9,19.54]
[1724160116690,11.36793,2639.0,2638.9,19.54]
[1724160117104,7.63406172,2639.0,2638.9,19.54]
[1724160117858,0.05544172,2639.0,2638.9,20.09]
[1724160118400,2.42764172,2639.0,2638.9,20.09]
[1724160118556,10.19358417,2639.0,2638.9,20.09]
[1724160118755,10.24879931,2639.0,2638.9,20.09]
[1724160119161,10.24879931,2639.0,2638.9,19.54]
[1724160119464,10.24879931,2639.0,2638.0,2.2932]
[1724160119465,3.7902,2638.4,2638.0,2.2932]
[1724160119694,3.79035,2638.3,2638.0,3.3935017]
[1724160119900,3.79047,2638.2,2637.7,6.08427]
[1724160120204,3.84560756,2638.1,2637.7,2.2932]
[1724160120359,0.05498756,2638.1,2637.7,2.2932]
[1724160120761,3.79091,2637.9,2637.4,2.2932]
[1724160121000,0.05426672,2637.8,2637.4,2.2932]
[1724160121159,0.05426672,2637.8,2637.5,0.6131762]
[1724160121359,3.79063,2638.1,2637.5,0.6131762]
[1724160121598,0.05446256,2638.0,2637.5,4.4046162]
[1724160121809,0.05446256,2638.0,2637.7,2.3592]